[Event "Int SVK-ch Open 2020"]
[Site "Drienica"]
[Date "2020.08.15"]
[Round "9.6"]
[White "Kulich, Filip"]
[Black "Bujna, Martin"]
[Result "1/2-1/2"]
[ECO "A46"]
[WhiteElo "1397"]
[BlackElo "1841"]
[Annotator "NA"]
[PlyCount "93"]
[EventDate "2020.08.07"]
[EventType "swiss"]
[EventCountry "SVK"]
[SourceTitle "playchess.com"]
[Source "ChessBase"]
[SourceQuality "1"]
[TimeControl "40/5400+30:1800+30"]

{[%evp 9,91,2,21,6,10,0,2,16,20,-7,5,-20,-13,32767,32767,-35,-9,0,-8,-22,0,-20,-17,-18,0,-17,-10,-12,0,0,0,-309,-345,32767,-345,-509,-144,-158,-160,32767,-158,32767,-162,-145,-162,-166,32767,-136,-126,32767,32767,32767,32767,32767,32767,32767,32767,32767,32767,32767,32767,32767,-99,-93,0,-87,-95,-88,-89,-93,-113,-107,-74,-60,-68,32767,32767,32767,-50,-67,-65,-65,-65,-101]} 1. d4 {[%emt 0:00:00]} Nf6 {[%emt 0:22:03]} 2. Nf3 {[%emt 0:02:45]} e6 {[%emt 0:00:15]} 3. e3 {[%emt 0:00:08]} b6 {[%emt 0:00:11]} 4. Bd3 {[%emt 0:00:29]} Bb7 {[%emt 0:00:16]} 5. O-O {[%emt 0:00:28]} Be7 {[%emt 0:00:51]} 6. b3 {[%emt 0:02:22]} O-O {[%emt 0:00:36]} 7. Bb2 {[%emt 0:00:43]} d5 {[%emt 0:00:34]} 8. Nbd2 {[%emt 0:00:30]} Nbd7 {[%emt 0:04:08]} 9. Re1 {[%emt 0:03:58] Recently 9.c4 got a lot of attention. D05: Colle System with ...e6.} c5 {[%emt 0:00:37]} 10. e4 {[%emt 0:00:52]} dxe4 {[%emt 0:05:21]} 11. Nxe4 {[%emt 0:04:39]} cxd4 {[%emt 0:02:36]} 12. Bxd4 {[%emt 0:05:56]} Rc8 {[%emt 0:05:25]} 13. c4 {[%emt 0:05:06]} Nc5 {[%emt 0:02:24]} 14. Nxc5 {[%emt 0:10:52]} Bxc5 {[%emt 0:02:33] [#]} 15. Be5 $146 {[%emt 0:05:22]} ({Predecessor:} 15. Bxc5 bxc5 16. Ne5 Qc7 17. Ng4 Nxg4 18. Qxg4 Rfd8 19. Re3 Rd4 20. Qh3 g6 21. Qg3 {0-1 (45) Mamedjarova,Z (2338)-Ju,W (2575) St Petersburg 2018}) 15... Ng4 {[%emt 0:02:50]} 16. Bg3 {[%emt 0:02:54]} Qf6 {[%emt 0:03:40]} 17. Be4 {[%emt 0:05:49]} Bxe4 {[%emt 0:17:09]} 18. Rxe4 {[%emt 0:00:20]} Rcd8 {[%emt 0:00:12]} 19. Qb1 {[%emt 0:05:14]} Qg6 {[%emt 0:01:49]} 20. Ne5 $2 {[%emt 0:13:12]} (20. Re2 $11 {and White has nothing to worry.}) 20... Nxe5 {[%emt 0:02:37]} 21. Bxe5 {[%emt 0:07:52]} Rd2 {[%emt 0:00:37]} 22. Rf4 {[%emt 0:02:55]} (22. Bg3 {might work better.} Bd4 23. Rxd4 Qxb1+ 24. Rxb1 Rxd4 25. Kf1) 22... Qg5 $2 {[%emt 0:02:29]} (22... Rfd8 $19 {has better winning chances.} 23. Qf1 R8d3) 23. Qe1 {[%emt 0:03:40]} Rfd8 {[%emt 0:03:29]} 24. Rf3 {[%emt 0:04:35] [#]} Bxf2+ $1 {[%emt 0:00:35]} 25. Rxf2 {[%emt 0:00:32]} Rxf2 {[%emt 0:00:11]} 26. Qxf2 {[%emt 0:05:25]} Qxe5 {[%emt 0:00:12]} 27. Rf1 {[%emt 0:01:09]} Qd4 {[%emt 0:00:14]} 28. Qxd4 {[%emt 0:01:28]} Rxd4 {[%emt 0:00:11]} 29. Rc1 {[%emt 0:00:21]} Rd2 {[%emt 0:00:51]} 30. c5 {[%emt 0:00:09]} bxc5 {[%emt 0:00:07]} 31. Rxc5 {[%emt 0:00:07]} g6 {[%emt 0:00:27]} 32. Ra5 {[%emt 0:00:08]} Rd7 {[%emt 0:00:26]} 33. a4 {[%emt 0:00:11]} Kf8 {[%emt 0:00:27]} 34. b4 {[%emt 0:00:09]} Ke7 {[%emt 0:00:38]} 35. Kf2 {[%emt 0:00:52]} Rb7 {[%emt 0:02:16]} 36. b5 {[%emt 0:02:01]} e5 {[%emt 0:00:55]} (36... Kd6 $17 37. Ra6+ Kd5) 37. b6 {[%emt 0:00:20]} (37. Ra6 $11) 37... axb6 {[%emt 0:00:08]} 38. Rxe5+ {[%emt 0:00:13]} Kd6 {[%emt 0:00:28]} 39. Rg5 {[%emt 0:03:11]} Ra7 {[%emt 0:00:20]} 40. Rb5 {[%emt 0:01:47]} Rxa4 {[%emt 0:00:30]} 41. Rxb6+ $15 {[%emt 0:30:08]} Ke5 {[%emt 0:30:45]} 42. Rb7 {[%emt 0:00:00]} Rf4+ {[%emt 0:00:00]} 43. Ke3 {[%emt 0:00:00]} Rf1 {[%emt 0:00:00]} 44. h3 {[%emt 0:00:00]} h5 {[%emt 0:00:00]} 45. Rb5+ {[%emt 0:00:00]} Kf6 {[%emt 0:00:00]} 46. Rb2 {[%emt 0:00:00]} Re1+ {[%emt 0:00:00]} 47. Kf3 1/2-1/2

[Event "Int SVK-ch Open 2020"]
[Site "Drienica"]
[Date "2020.08.15"]
[Round "9.7"]
[White "Mrvova, Alena"]
[Black "Kravec, Patrik"]
[Result "1/2-1/2"]
[ECO "B25"]
[WhiteElo "2188"]
[BlackElo "2119"]
[Annotator "ChessBase"]
[PlyCount "91"]
[EventDate "2020.08.07"]
[EventType "swiss"]
[EventCountry "SVK"]
[SourceTitle "playchess.com"]
[Source "ChessBase"]
[SourceQuality "1"]
[TimeControl "40/5400+30:1800+30"]

1. e4 {[%emt 0:00:00]} c5 {[%emt 0:00:00]} 2. Nf3 {[%emt 0:00:07]} Nc6 {[%emt 0:00:22]} 3. Nc3 {[%emt 0:00:29]} d6 {[%emt 0:01:40]} 4. d3 {[%emt 0:00:32]} g6 {[%emt 0:00:31]} 5. g3 {[%emt 0:05:14]} Bg7 {[%emt 0:00:26]} 6. Bg2 {[%emt 0:01:22]} Nf6 {[%emt 0:04:05]} 7. O-O {[%emt 0:01:04]} O-O {[%emt 0:01:25]} 8. Ne2 {[%emt 0:01:51]} Bd7 {[%emt 0:01:00]} 9. c3 {[%emt 0:00:34]} c4 {[%emt 0:03:55]} 10. Nfd4 {[%emt 0:03:41]} cxd3 {[%emt 0:02:00]} 11. Qxd3 {[%emt 0:00:25]} Ne5 {[%emt 0:00:42]} 12. Qc2 {[%emt 0:00:12]} Qc8 {[%emt 0:01:39]} 13. f4 {[%emt 0:02:10]} Nc6 {[%emt 0:01:17]} 14. Qd3 {[%emt 0:03:07]} a6 {[%emt 0:07:05]} 15. a4 {[%emt 0:01:31]} Rb8 {[%emt 0:01:22]} 16. Bd2 {[%emt 0:03:00]} Na5 {[%emt 0:01:43]} 17. Be1 {[%emt 0:03:10]} Qc4 {[%emt 0:01:43]} 18. Qc2 {[%emt 0:02:12]} Ng4 {[%emt 0:04:09]} 19. Bf2 {[%emt 0:09:33]} Nxf2 {[%emt 0:06:08]} 20. Rxf2 {[%emt 0:00:05]} Qc8 {[%emt 0:07:58]} 21. b3 {[%emt 0:02:02]} Nc6 {[%emt 0:01:17]} 22. Rd1 {[%emt 0:02:13]} b5 {[%emt 0:02:31]} 23. axb5 {[%emt 0:00:34]} axb5 {[%emt 0:00:06]} 24. Nxc6 {[%emt 0:00:40]} Bxc6 {[%emt 0:01:13]} 25. Nd4 {[%emt 0:01:21]} Bd7 {[%emt 0:00:55]} 26. Qd3 {[%emt 0:02:27]} Qc5 {[%emt 0:01:16]} 27. b4 {[%emt 0:00:40]} Qc7 {[%emt 0:00:51]} 28. Bf1 {[%emt 0:01:31]} Rfc8 {[%emt 0:01:07]} 29. Rc1 {[%emt 0:00:35]} Qb6 {[%emt 0:03:25]} 30. Rd1 {[%emt 0:02:44]} Rc7 {[%emt 0:05:06]} 31. Kg2 {[%emt 0:05:12]} Qa7 {[%emt 0:06:58]} 32. Rb2 {[%emt 0:05:59]} Qa3 {[%emt 0:06:03]} 33. Rb3 {[%emt 0:03:07]} Qa4 {[%emt 0:02:14]} 34. Rdb1 {[%emt 0:01:19]} Qa8 {[%emt 0:02:12]} 35. Be2 {[%emt 0:01:46]} e5 {[%emt 0:05:22]} 36. Nf3 {[%emt 0:01:17]} Be6 {[%emt 0:01:46]} 37. R3b2 {[%emt 0:01:22]} exf4 {[%emt 0:00:35]} 38. Qxd6 {[%emt 0:01:20]} Rxc3 {[%emt 0:03:21]} 39. Qxf4 {[%emt 0:01:17]} Bc4 {[%emt 0:03:38]} 40. Ne5 {[%emt 0:06:26]} Bxe5 {[%emt 0:05:06]} 41. Qxe5 {[%emt 0:30:05]} Re3 {[%emt 0:31:24]} 42. Bf3 {[%emt 0:00:18]} Re8 {[%emt 0:00:00]} 43. Ra1 {[%emt 0:00:00]} Qd8 {[%emt 0:00:00]} 44. Rd1 {[%emt 0:00:00]} Rd3 {[%emt 0:00:00]} 45. Rxd3 {[%emt 0:00:00]} Bxd3 {[%emt 0:00:00]} 46. Qd5 {[%emt 0:00:00]} 1/2-1/2

[Event "Int SVK-ch Open 2020"]
[Site "Drienica"]
[Date "2020.08.15"]
[Round "9.7"]
[White "Recky, Norbert"]
[Black "Furman, Slavomir"]
[Result "0-1"]
[ECO "C42"]
[WhiteElo "1811"]
[BlackElo "1754"]
[Annotator "NA"]
[PlyCount "44"]
[EventDate "2020.08.07"]
[EventType "swiss"]
[EventCountry "SVK"]
[SourceTitle "playchess.com"]
[Source "ChessBase"]
[SourceQuality "1"]
[TimeControl "40/5400+30:1800+30"]

1. e4 {[%emt 0:00:00]} e5 {[%emt 0:00:00]} 2. Nf3 {[%emt 0:00:00]} Nf6 {[%emt 0:00:00]} 3. Nxe5 {[%emt 0:00:25]} d6 {[%emt 0:00:00]} 4. Nf3 {[%emt 0:00:26]} Nxe4 {[%emt 0:00:05]} 5. d4 {[%emt 0:00:06]} d5 {[%emt 0:00:08]} 6. Bd3 {[%emt 0:00:15]} Bd6 {[%emt 0:00:10]} 7. O-O {[%emt 0:00:13]} O-O {[%emt 0:00:06]} 8. Re1 {[%emt 0:05:32]} Re8 {[%emt 0:03:00]} 9. Nbd2 {[%emt 0:04:07] C42: Petroff Defence: 3 Nxe5 and unusual White 3rd moves.} Nxd2 {[%emt 0:00:38]} 10. Bxd2 {[%emt 0:03:05] [#]} Nd7 $146 {[%emt 0:01:47]} ({Predecessor:} 10... Bg4 11. Rxe8+ Qxe8 12. h3 Bh5 13. Be3 a6 14. Qe2 Nc6 15. c3 Qe7 16. Re1 Re8 17. Qd1 f5 18. Be2 h6 19. Nd2 Bxe2 20. Qxe2 f4 {0-1 (20) Jalovec,I (1187)-Kuzner,C (1764) Ptuj 2018}) 11. Bxh7+ $2 {[%emt 0:16:24]} (11. Rxe8+ $14 {was the only good move.} Qxe8 12. c3) 11... Kxh7 {[%emt 0:12:53]} 12. Ng5+ {[%emt 0:00:23]} Kg6 {[%emt 0:00:06]} 13. Nxf7 $2 {[%emt 0:01:21]} (13. c4 {is a better chance.} Rxe1+ 14. Qxe1) 13... Rxe1+ {[%emt 0:01:27]} 14. Bxe1 {[%emt 0:01:09]} Kxf7 {[%emt 0:00:07]} 15. Qh5+ {[%emt 0:00:44]} Kg8 {[%emt 0:01:46]} 16. Qxd5+ {[%emt 0:00:59]} Kf8 {[%emt 0:00:10]} 17. Bd2 {[%emt 0:05:00]} Nf6 {[%emt 0:04:23]} 18. Qb3 {[%emt 0:04:33]} Qe8 {[%emt 0:10:41]} 19. Re1 {[%emt 0:02:03]} Qh5 {[%emt 0:00:33]} 20. h3 {[%emt 0:00:17]} b6 $19 {[%emt 0:05:12]} 21. c4 {[%emt 0:02:25]} c5 {[%emt 0:04:11]} 22. d5 {[%emt 0:00:25]} Bd7 {[%emt 0:01:40]} 0-1

[Event "Int SVK-ch Open 2020"]
[Site "Drienica"]
[Date "2020.08.15"]
[Round "9.8"]
[White "Bombek, Peter"]
[Black "Konyves, Almos"]
[Result "1-0"]
[ECO "D65"]
[WhiteElo "2181"]
[BlackElo "2090"]
[Annotator "ChessBase"]
[PlyCount "111"]
[EventDate "2020.08.07"]
[EventType "swiss"]
[EventCountry "SVK"]
[SourceTitle "playchess.com"]
[Source "ChessBase"]
[SourceQuality "1"]
[TimeControl "40/5400+30:1800+30"]

1. d4 {[%emt 0:00:00]} d5 {[%emt 0:00:00]} 2. c4 {[%emt 0:00:00]} e6 {[%emt 0:00:00]} 3. Nc3 {[%emt 0:00:00]} Nf6 {[%emt 0:00:00]} 4. Bg5 {[%emt 0:00:05]} Be7 {[%emt 0:00:10]} 5. e3 {[%emt 0:00:09]} h6 {[%emt 0:00:30]} 6. Bh4 {[%emt 0:00:10]} O-O {[%emt 0:00:26]} 7. Nf3 {[%emt 0:00:04]} Nbd7 {[%emt 0:00:34]} 8. Qc2 {[%emt 0:00:34]} c6 {[%emt 0:01:15]} 9. Rc1 {[%emt 0:00:20]} a6 {[%emt 0:00:55]} 10. cxd5 {[%emt 0:00:28]} exd5 {[%emt 0:02:53]} 11. Bd3 {[%emt 0:00:22]} Re8 {[%emt 0:00:07]} 12. O-O {[%emt 0:01:44]} Ne4 {[%emt 0:01:55]} 13. Bxe4 {[%emt 0:03:54]} Bxh4 {[%emt 0:00:59]} 14. Bh7+ {[%emt 0:05:01]} Kh8 {[%emt 0:00:28]} 15. Bf5 {[%emt 0:03:36]} Bf6 {[%emt 0:03:33]} 16. Na4 {[%emt 0:10:26]} Nf8 {[%emt 0:11:51]} 17. Bxc8 {[%emt 0:01:53]} Rxc8 {[%emt 0:02:12]} 18. Nc5 {[%emt 0:01:12]} Qe7 {[%emt 0:00:49]} 19. b4 {[%emt 0:02:20]} Ne6 {[%emt 0:06:12]} 20. Rb1 {[%emt 0:01:36]} Nxc5 {[%emt 0:10:32]} 21. bxc5 {[%emt 0:02:19]} Rc7 {[%emt 0:04:45]} 22. Qf5 {[%emt 0:12:44]} g6 {[%emt 0:01:22]} 23. Qf4 {[%emt 0:00:51]} Bg7 {[%emt 0:01:55]} 24. h3 {[%emt 0:08:11]} Kh7 {[%emt 0:07:29]} 25. Rb3 {[%emt 0:11:08]} f5 {[%emt 0:07:32]} 26. Rfb1 {[%emt 0:00:50]} Rd7 {[%emt 0:03:48]} 27. h4 {[%emt 0:04:27]} Rf8 {[%emt 0:08:59]} 28. Ne5 {[%emt 0:03:26]} Rc7 {[%emt 0:03:38]} 29. Qg3 {[%emt 0:02:19]} Rf6 {[%emt 0:01:04]} 30. f4 {[%emt 0:01:09]} Re6 {[%emt 0:00:46]} 31. Kh2 {[%emt 0:02:27]} Bxe5 {[%emt 0:02:12]} 32. fxe5 {[%emt 0:01:57]} g5 {[%emt 0:01:41]} 33. Qf3 {[%emt 0:01:32]} gxh4 {[%emt 0:05:45]} 34. Qxf5+ {[%emt 0:00:31]} Rg6 {[%emt 0:02:29]} 35. Rf1 {[%emt 0:03:22]} Kg7 {[%emt 0:01:15]} 36. Rb2 {[%emt 0:02:08]} Rg5 {[%emt 0:02:04]} 37. Qf4 {[%emt 0:01:55]} Rc8 {[%emt 0:01:33]} 38. Qf6+ {[%emt 0:02:21]} Qxf6 {[%emt 0:00:05]} 39. Rxb7+ {[%emt 0:01:16]} Kg6 {[%emt 0:00:27]} 40. Rxf6+ {[%emt 0:01:04]} Kh5 {[%emt 0:00:05]} 41. Rh7 {[%emt 0:31:32]} Rg6 {[%emt 0:30:30]} 42. Rhf7 {[%emt 0:03:18]} Rg5 {[%emt 0:03:33]} 43. Rh7 {[%emt 0:04:30]} Rg6 {[%emt 0:00:15]} 44. Rxg6 {[%emt 0:01:11]} Kxg6 {[%emt 0:00:06]} 45. Ra7 {[%emt 0:00:11]} Kf5 {[%emt 0:00:28]} 46. Rxa6 {[%emt 0:00:37]} Ke4 {[%emt 0:00:05]} 47. Ra3 {[%emt 0:01:08]} Rg8 {[%emt 0:02:40]} 48. Rb3 {[%emt 0:01:07]} h5 {[%emt 0:00:00]} 49. a4 {[%emt 0:00:00]} h3 {[%emt 0:00:00]} 50. Kxh3 {[%emt 0:00:00]} h4 {[%emt 0:00:00]} 51. a5 {[%emt 0:00:00]} Rg3+ {[%emt 0:00:00]} 52. Kh2 {[%emt 0:00:00]} Rg7 {[%emt 0:00:00]} 53. a6 {[%emt 0:00:00]} Ra7 {[%emt 0:00:00]} 54. Ra3 {[%emt 0:00:00]} Kf5 {[%emt 0:00:00]} 55. Kh3 {[%emt 0:00:00]} Ke4 {[%emt 0:00:00]} 56. e6 {[%emt 0:00:00]} 1-0

[Event "Int SVK-ch Open 2020"]
[Site "Drienica"]
[Date "2020.08.15"]
[Round "9.8"]
[White "Kubikova, Nina"]
[Black "Holicky, Miroslav"]
[Result "0-1"]
[ECO "B01"]
[WhiteElo "1256"]
[BlackElo "1805"]
[Annotator "NA"]
[PlyCount "94"]
[EventDate "2020.08.07"]
[EventType "swiss"]
[EventCountry "SVK"]
[SourceTitle "playchess.com"]
[Source "ChessBase"]
[SourceQuality "1"]
[TimeControl "40/5400+30:1800+30"]

{[%evp 17,91,47,77,32767,91,84,83,36,22,-11,-12,-18,32767,32767,32767,32767,32767,32767,29,-4,0,0,32767,10,10,0,0,0,0,32767,0,0,8,-11,32767,-106,-148,-123,-117,-155,-183,-341,-314,32767,32767,-405,-407,-545,-306,-302,-199,-446,-434,-447,-466,32767,-202,32767,-229,32767,32767,-250,-238,-213,-319,-236,-306,-320,-384,-420,32767,32767,32767,-743,-995,-1037]} 1. e4 {[%emt 0:00:00]} d5 {[%emt 0:00:00]} 2. exd5 {[%emt 0:00:00]} Qxd5 {[%emt 0:00:00]} 3. Nc3 {[%emt 0:00:00]} Qd8 {[%emt 0:00:00]} 4. d4 {[%emt 0:01:06]} Nf6 {[%emt 0:00:10]} 5. Nf3 {[%emt 0:00:08]} e6 {[%emt 0:00:38]} 6. Bf4 {[%emt 0:02:35] B01: Scandinavian Defence.} a6 {[%emt 0:01:15]} 7. Ne5 {[%emt 0:02:16]} Nbd7 {[%emt 0:01:36] [#]} 8. Bc4 $146 {[%emt 0:03:19]} ({Predecessor:} 8. Qf3 Nb6 9. O-O-O Nbd5 10. Bc4 Nxf4 11. Qxf4 Bd6 12. g4 O-O 13. g5 Nd7 14. h4 {1-0 (41) Lupulescu,C (2566)-Milanovic,D (2519) Bucharest 2007}) 8... Nb6 {[%emt 0:03:13]} 9. Bb3 {[%emt 0:04:15]} Bb4 {[%emt 0:02:49]} 10. O-O {[%emt 0:01:28]} Bxc3 {[%emt 0:04:05]} 11. bxc3 {[%emt 0:00:11]} Nbd5 {[%emt 0:02:03]} 12. Bxd5 {[%emt 0:01:41]} Nxd5 {[%emt 0:02:28]} 13. Qf3 {[%emt 0:09:26]} Qf6 {[%emt 0:02:27]} 14. Bd2 {[%emt 0:01:39]} Qxf3 {[%emt 0:00:50]} 15. Nxf3 {[%emt 0:00:17]} Nb6 {[%emt 0:02:37]} 16. Rab1 {[%emt 0:04:51]} Nc4 {[%emt 0:01:23]} 17. Bf4 {[%emt 0:00:13]} c6 {[%emt 0:10:59]} 18. Rb4 {[%emt 0:08:57]} b5 {[%emt 0:09:14]} 19. Ne5 {[%emt 0:07:07]} a5 {[%emt 0:03:52]} 20. Rbb1 {[%emt 0:03:47]} Nxe5 {[%emt 0:05:09]} 21. Bxe5 {[%emt 0:00:19]} f6 {[%emt 0:01:17]} 22. Bd6 {[%emt 0:03:30]} Kf7 {[%emt 0:03:24]} 23. c4 {[%emt 0:03:45]} Ba6 {[%emt 0:04:08]} 24. c5 {[%emt 0:04:45]} b4 {[%emt 0:02:45]} 25. Rfe1 {[%emt 0:04:49]} Bc4 {[%emt 0:00:25]} 26. Re3 {[%emt 0:02:18]} (26. Rb2 $11 {remains equal.}) 26... Bxa2 {[%emt 0:02:04]} 27. Rb2 {[%emt 0:00:16]} Bc4 {[%emt 0:00:56]} 28. f4 {[%emt 0:01:11]} Ra7 {[%emt 0:02:43]} 29. Rb1 $2 {[%emt 0:00:37]} (29. Re1) 29... Rha8 {[%emt 0:02:52]} 30. Kf2 {[%emt 0:02:12]} Rb7 {[%emt 0:00:13]} 31. Ke1 {[%emt 0:01:45]} a4 {[%emt 0:00:42]} 32. Ra1 {[%emt 0:02:48]} Rba7 {[%emt 0:05:40]} 33. Kd2 {[%emt 0:03:03]} b3 {[%emt 0:00:18]} 34. cxb3 $2 {[%emt 0:00:19]} (34. Ra3) 34... axb3 {[%emt 0:00:21]} 35. Rxa7+ {[%emt 0:00:37]} Rxa7 {[%emt 0:00:06]} 36. Kc3 {[%emt 0:00:16]} Bd5 {[%emt 0:03:33]} (36... Ra1 $142 37. Kxc4 b2) 37. Re2 {[%emt 0:02:27]} h5 {[%emt 0:04:19]} 38. g3 {[%emt 0:02:02]} Kg6 {[%emt 0:00:48]} 39. Bb8 {[%emt 0:07:22]} Ra1 {[%emt 0:01:38]} 40. Rd2 {[%emt 0:00:57]} Kf5 {[%emt 0:02:38]} 41. Bd6 {[%emt 0:31:15]} Ke4 {[%emt 0:31:31]} 42. Bf8 {[%emt 0:01:13]} g6 {[%emt 0:02:14]} 43. Bg7 {[%emt 0:00:42]} f5 {[%emt 0:01:39]} 44. Bf6 {[%emt 0:00:58]} Ke3 {[%emt 0:00:20]} 45. Rb2 {[%emt 0:04:38]} Rc1+ {[%emt 0:03:35]} 46. Kb4 $19 {[%emt 0:00:10]} Rc2 {[%emt 0:04:59]} 47. Ka3 {[%emt 0:00:57]} Kd3 {[%emt 0:00:09]} 0-1

[Event "Int SVK-ch Open 2020"]
[Site "Drienica"]
[Date "2020.08.15"]
[Round "9.9"]
[White "Demeter, Peter"]
[Black "Garancovsky, Pavol"]
[Result "1-0"]
[ECO "A20"]
[WhiteElo "2139"]
[BlackElo "2027"]
[Annotator "ChessBase"]
[PlyCount "55"]
[EventDate "2020.08.07"]
[EventType "swiss"]
[EventCountry "SVK"]
[SourceTitle "playchess.com"]
[Source "ChessBase"]
[SourceQuality "1"]
[TimeControl "40/5400+30:1800+30"]

1. c4 {[%emt 0:00:00]} c6 {[%emt 0:01:26]} 2. g3 {[%emt 0:00:00]} d5 {[%emt 0:00:17]} 3. Bg2 {[%emt 0:00:00]} e5 {[%emt 0:02:28]} 4. cxd5 {[%emt 0:01:58]} cxd5 {[%emt 0:01:12]} 5. Nf3 {[%emt 0:00:21]} f6 {[%emt 0:03:14]} 6. O-O {[%emt 0:00:17]} Ne7 {[%emt 0:05:57]} 7. d3 {[%emt 0:01:03]} Nec6 {[%emt 0:01:16]} 8. Nc3 {[%emt 0:00:29]} Be6 {[%emt 0:03:08]} 9. e4 {[%emt 0:00:58]} d4 {[%emt 0:05:06]} 10. Nd5 {[%emt 0:01:34]} Na6 {[%emt 0:00:23]} 11. Nh4 {[%emt 0:02:28]} Bd6 {[%emt 0:06:24]} 12. Nf5 {[%emt 0:08:58]} Qd7 {[%emt 0:06:26]} 13. Qg4 {[%emt 0:06:49]} O-O-O {[%emt 0:02:06]} 14. Nxd6+ {[%emt 0:04:21]} Qxd6 {[%emt 0:01:38]} 15. Qxg7 {[%emt 0:00:10]} f5 {[%emt 0:05:36]} 16. Bg5 {[%emt 0:04:21]} Rhg8 {[%emt 0:03:56]} 17. Ne7+ {[%emt 0:02:30]} Nxe7 {[%emt 0:01:38]} 18. Qxe7 {[%emt 0:00:06]} Rxg5 {[%emt 0:10:18]} 19. Rfc1+ {[%emt 0:01:39]} Kb8 {[%emt 0:00:15]} 20. Qxg5 {[%emt 0:00:06]} f4 {[%emt 0:00:07]} 21. Qh6 {[%emt 0:01:33]} Nb4 {[%emt 0:01:42]} 22. Rd1 {[%emt 0:02:50]} fxg3 {[%emt 0:00:55]} 23. hxg3 {[%emt 0:01:39]} Bxa2 {[%emt 0:00:41]} 24. Qxh7 {[%emt 0:04:03]} Bg8 {[%emt 0:03:54]} 25. Qg7 {[%emt 0:00:57]} Be6 {[%emt 0:00:08]} 26. Qh6 {[%emt 0:01:21]} Qd7 {[%emt 0:00:59]} 27. Qf6 {[%emt 0:00:40]} Nc6 {[%emt 0:00:13]} 28. Rdc1 {[%emt 0:02:50]} 1-0

[Event "Int SVK-ch Open 2020"]
[Site "Drienica"]
[Date "2020.08.15"]
[Round "9.9"]
[White "Harvan, Tomas"]
[Black "Ganzova, Veronika"]
[Result "1-0"]
[ECO "B34"]
[WhiteElo "1794"]
[BlackElo "1614"]
[Annotator "NA"]
[PlyCount "47"]
[EventDate "2020.08.07"]
[EventType "swiss"]
[EventCountry "SVK"]
[SourceTitle "playchess.com"]
[Source "ChessBase"]
[SourceQuality "1"]
[TimeControl "40/5400+30:1800+30"]

1. e4 {[%emt 0:00:00]} c5 {[%emt 0:00:37]} 2. Nf3 {[%emt 0:00:00]} Nc6 {[%emt 0:00:34]} 3. d4 {[%emt 0:00:08]} cxd4 {[%emt 0:00:09]} 4. Nxd4 {[%emt 0:00:06]} g6 {[%emt 0:00:12]} 5. Nc3 {[%emt 0:00:15]} Bg7 {[%emt 0:00:27]} 6. Nxc6 {[%emt 0:00:29]} bxc6 {[%emt 0:02:06]} 7. Bc4 {[%emt 0:00:23]} d6 {[%emt 0:05:16]} 8. O-O {[%emt 0:00:13]} Nf6 {[%emt 0:00:41]} 9. e5 {[%emt 0:00:49]} Ng4 {[%emt 0:10:21]} 10. exd6 {[%emt 0:10:50]} exd6 {[%emt 0:02:58]} 11. Re1+ {[%emt 0:05:31]} Kf8 {[%emt 0:00:23]} 12. Qf3 {[%emt 0:03:09]} Qf6 {[%emt 0:03:41]} 13. Bf4 {[%emt 0:07:20]} Ne5 {[%emt 0:08:54]} 14. Qe3 {[%emt 0:09:02]} Bb7 {[%emt 0:03:22]} 15. Bb3 {[%emt 0:04:37]} Ng4 {[%emt 0:12:10]} 16. Qg3 {[%emt 0:01:31]} Ne5 {[%emt 0:02:37]} 17. Rad1 {[%emt 0:01:06]} h5 {[%emt 0:02:35]} 18. Bxe5 {[%emt 0:02:30]} dxe5 {[%emt 0:01:16]} 19. Rd7 {[%emt 0:00:14]} Bc8 {[%emt 0:07:20]} 20. Rxf7+ {[%emt 0:00:33]} Qxf7 {[%emt 0:00:09]} 21. Bxf7 {[%emt 0:00:12]} Kxf7 {[%emt 0:00:05]} 22. Qf3+ {[%emt 0:00:39]} Bf5 {[%emt 0:01:33]} 23. Qxc6 {[%emt 0:00:44]} Bxc2 {[%emt 0:02:13]} 24. Nb5 {[%emt 0:10:01]} 1-0

[Event "Int SVK-ch Open 2020"]
[Site "Drienica"]
[Date "2020.08.15"]
[Round "9.10"]
[White "Verbovsky, Michal"]
[Black "Bednar, Jan"]
[Result "1/2-1/2"]
[ECO "D02"]
[WhiteElo "2113"]
[BlackElo "2018"]
[Annotator "ChessBase"]
[PlyCount "41"]
[EventDate "2020.08.07"]
[EventType "swiss"]
[EventCountry "SVK"]
[SourceTitle "playchess.com"]
[Source "ChessBase"]
[SourceQuality "1"]
[TimeControl "40/5400+30:1800+30"]

1. d4 {[%emt 0:00:03]} d5 {[%emt 0:00:00]} 2. Nf3 {[%emt 0:00:23]} Nf6 {[%emt 0:00:32]} 3. g3 {[%emt 0:00:08]} e6 {[%emt 0:00:37]} 4. Bg2 {[%emt 0:00:16]} c5 {[%emt 0:00:19]} 5. O-O {[%emt 0:01:06]} Nc6 {[%emt 0:00:04]} 6. b3 {[%emt 0:02:45]} cxd4 {[%emt 0:09:32]} 7. Nxd4 {[%emt 0:00:52]} Be7 {[%emt 0:02:44]} 8. Bb2 {[%emt 0:07:15]} O-O {[%emt 0:04:02]} 9. c4 {[%emt 0:01:04]} dxc4 {[%emt 0:04:17]} 10. Nxc6 {[%emt 0:06:03]} bxc6 {[%emt 0:00:28]} 11. bxc4 {[%emt 0:00:46]} Qc7 {[%emt 0:05:48]} 12. Nd2 {[%emt 0:04:32]} Rb8 {[%emt 0:01:55]} 13. Qc2 {[%emt 0:03:00]} c5 {[%emt 0:03:39]} 14. Rab1 {[%emt 0:04:59]} Bb7 {[%emt 0:02:59]} 15. Bxb7 {[%emt 0:06:19]} Rxb7 {[%emt 0:00:28]} 16. Be5 {[%emt 0:00:36]} Qc6 {[%emt 0:00:44]} 17. Rxb7 {[%emt 0:01:22]} Qxb7 {[%emt 0:00:04]} 18. Rb1 {[%emt 0:00:35]} Qc6 {[%emt 0:01:24]} 19. Qb2 {[%emt 0:20:03]} Rd8 {[%emt 0:18:52]} 20. Nf3 {[%emt 0:08:56]} Qe4 {[%emt 0:06:49]} 21. Rc1 {[%emt 0:14:52]} 1/2-1/2